[Event "2026 European Womens Championship"]
[Site "Batumi, GE"]
[Date "2026.05.26"]
[Round "2"]
[White "Kalayci, Nino"]
[Black "Ivanytska, Liudmyla"]
[Result "0-1"]
[Board "73"]
[TimeControl "5400+30"]
[WhiteFideId "13603221"]
[BlackFideId "14176211"]
[WhiteElo "1755"]
[BlackElo "2112"]
[WhiteTitle "WCM"]
[WhiteClock "0:01:03"]
[BlackClock "0:32:43"]
[Variant "Standard"]

1. d4 {[%clk 1:30:30]}  Nf6 {[%clk 1:29:38]} 2. c4 {[%clk 1:30:35]}  e6 {[%clk 1:30:07]} 3. Nf3 {[%clk 1:30:45]}  b6 {[%clk 1:30:33]}
4. a3 {[%clk 1:31:01]}  Bb7 {[%clk 1:30:53]} 5. Nc3 {[%clk 1:31:20]}  d5 {[%clk 1:30:52]} 6. cxd5 {[%clk 1:31:24]}  Nxd5 {[%clk 1:30:58]}
7. Qa4+ {[%clk 1:24:59]}  Nd7 {[%clk 1:31:00]} 8. Nxd5 {[%clk 1:24:03]}  Bxd5 {[%clk 1:29:22]} 9. Bg5 {[%clk 1:17:07]}  f6 {[%clk 1:16:19]}
10. Bf4 {[%clk 1:08:08]}  Bd6 {[%clk 1:13:47]} 11. Bxd6 {[%clk 1:06:16]}  cxd6 {[%clk 1:14:15]} 12. Nd2 {[%clk 0:57:25]}  f5 {[%clk 1:14:39]}
13. e3 {[%clk 0:29:51]}  O-O {[%clk 1:14:04]} 14. Bc4 {[%clk 0:23:37]}  Nf6 {[%clk 1:03:42]} 15. O-O {[%clk 0:21:27]}  Kh8 {[%clk 1:03:26]}
16. Bxd5 {[%clk 0:20:35]}  Nxd5 {[%clk 1:03:49]} 17. Rac1 {[%clk 0:17:59]}  Rf6 {[%clk 1:01:17]} 18. Qc6 {[%clk 0:15:59]}  Qf8 {[%clk 1:00:39]}
19. e4 {[%clk 0:07:04]}  Nf4 {[%clk 1:00:05]} 20. Kh1 {[%clk 0:01:34]}  e5 {[%clk 0:57:16]} 21. dxe5 {[%clk 0:00:59]}  dxe5 {[%clk 0:57:29]}
22. Qb7 {[%clk 0:00:37]}  Nd3 {[%clk 0:54:49]} 23. Rc2 {[%clk 0:00:46]}  Nc5 {[%clk 0:54:06]} 24. Qd5 {[%clk 0:00:49]}  Rd8 {[%clk 0:54:14]}
25. Qxe5 {[%clk 0:00:39]}  fxe4 {[%clk 0:53:14]} 26. Kg1 {[%clk 0:00:36]}  Re8 {[%clk 0:48:42]} 27. Qg3 {[%clk 0:00:39]}  a5 {[%clk 0:44:36]}
28. b4 {[%clk 0:00:42]}  Rg6 {[%clk 0:43:44]} 29. Qe3 {[%clk 0:00:52]}  axb4 {[%clk 0:43:57]} 30. axb4 {[%clk 0:01:21]}  Nd3 {[%clk 0:44:19]}
31. Nxe4 {[%clk 0:00:54]}  Nxb4 {[%clk 0:43:59]} 32. Rc4 {[%clk 0:00:50]}  Nd5 {[%clk 0:41:02]} 33. Qd4 {[%clk 0:00:37]}  b5 {[%clk 0:41:06]}
34. Rc2 {[%clk 0:00:38]}  Qf5 {[%clk 0:39:39]} 35. f3 {[%clk 0:00:35]}  Nf4 {[%clk 0:36:35]} 36. Rd2 {[%clk 0:00:36]}  Rf8 {[%clk 0:33:05]}
37. Ng3 {[%clk 0:00:49]}  Qg5 {[%clk 0:32:46]} 38. Qb4 {[%clk 0:00:52]}  Rb8 {[%clk 0:32:48]} 39. Re1 {[%clk 0:00:36]}  h6 {[%clk 0:32:14]}
40. Ne4 {[%clk 0:00:36]}  Qh4 {[%clk 0:31:26]} 41. Rf1 {[%clk 0:00:37]}  Qh5 {[%clk 0:27:35]} 42. Ng3 {[%clk 0:00:51]}  Qe5 {[%clk 0:27:00]}
43. Qd4 {[%clk 0:26:22]}  Qc7 {[%clk 0:51:12]} 44. Qd7 {[%clk 0:16:23]}  Qc5+ {[%clk 0:50:21]} 45. Qd4 {[%clk 0:16:02]}  Qf8 {[%clk 0:50:47]}
46. Kh1 {[%clk 0:15:07]}  b4 {[%clk 0:50:05]} 47. Rb1 {[%clk 0:10:06]}  b3 {[%clk 0:49:41]} 48. Qc4 {[%clk 0:04:41]}  Rgb6 {[%clk 0:49:04]}
49. Ne2 {[%clk 0:01:53]}  Qf5 {[%clk 0:45:16]} 50. Rdb2 {[%clk 0:01:57]}  Nd3 {[%clk 0:43:42]} 51. Rxb3 {[%clk 0:00:55]}  Ne5 {[%clk 0:44:03]}
52. Qd5 {[%clk 0:00:37]}  Qxb1+ {[%clk 0:43:46]} 53. Rxb1 {[%clk 0:00:59]}  Rxb1+ {[%clk 0:44:12]} 54. Ng1 {[%clk 0:01:23]}  Re1 {[%clk 0:44:40]}
55. h4 {[%clk 0:00:46]}  Rbb1 {[%clk 0:41:44]} 56. Kh2 {[%clk 0:01:10]}  Ng6 {[%clk 0:36:45]} 57. Nh3 {[%clk 0:01:05]}  Rbd1 {[%clk 0:34:00]}
58. Qa8+ {[%clk 0:00:37]}  Kh7 {[%clk 0:34:25]} 59. h5 {[%clk 0:00:47]}  Ne7 {[%clk 0:33:27]} 60. Nf4 {[%clk 0:00:34]}  Nf5 {[%clk 0:32:23]}
61. g4 {[%clk 0:00:34]}  Rd2+ {[%clk 0:31:04]} 62. Ng2 {[%clk 0:00:37]}  Nh4 {[%clk 0:31:20]} 63. Kg3 {[%clk 0:00:34]}  Rxg2+ {[%clk 0:31:22]}
64. Kf4 {[%clk 0:00:53]}  Rf2 {[%clk 0:31:37]} 65. g5 {[%clk 0:00:34]}  Rxf3+ {[%clk 0:31:47]} 66. Kg4 {[%clk 0:00:50]}  Rg1+ {[%clk 0:32:15]}
67. Kxh4 {[%clk 0:01:03]}  hxg5# {[%clk 0:32:43]} 0-1

[Event "2026 European Womens Championship"]
[Site "Batumi, GE"]
[Date "2026.05.26"]
[Round "2"]
[White "Lomaia, Diana"]
[Black "Danielyan, Lilia"]
[Result "1-0"]
[Board "74"]
[TimeControl "5400+30"]
[WhiteFideId "13612476"]
[BlackFideId "13319841"]
[WhiteElo "2110"]
[BlackElo "1728"]
[WhiteTitle "WFM"]
[WhiteClock "0:43:05"]
[BlackClock "0:20:59"]
[Variant "Standard"]

1. d4 {[%clk 1:30:55]}  Nf6 {[%clk 1:30:49]} 2. c4 {[%clk 1:31:11]}  e6 {[%clk 1:31:05]} 3. Nc3 {[%clk 1:31:28]}  Bb4 {[%clk 1:31:18]}
4. Nf3 {[%clk 1:31:28]}  O-O {[%clk 1:31:14]} 5. e3 {[%clk 1:30:44]}  d5 {[%clk 1:31:06]} 6. Qc2 {[%clk 1:30:25]}  Re8 {[%clk 1:26:15]}
7. Bd3 {[%clk 1:29:09]}  Nbd7 {[%clk 1:20:53]} 8. O-O {[%clk 1:23:03]}  c6 {[%clk 1:15:54]} 9. a3 {[%clk 1:11:17]}  Bd6 {[%clk 1:13:15]}
10. e4 {[%clk 1:06:19]}  dxe4 {[%clk 1:11:57]} 11. Nxe4 {[%clk 1:04:50]}  Nxe4 {[%clk 1:10:45]} 12. Bxe4 {[%clk 1:05:16]}  h6 {[%clk 1:10:22]}
13. b4 {[%clk 1:02:59]}  f5 {[%clk 0:59:09]} 14. Bd3 {[%clk 1:02:16]}  g5 {[%clk 0:57:50]} 15. d5 {[%clk 0:58:31]}  Ne5 {[%clk 0:53:50]}
16. Bb2 {[%clk 0:48:17]}  Nxd3 {[%clk 0:35:07]} 17. Qxd3 {[%clk 0:47:27]}  cxd5 {[%clk 0:31:31]} 18. Qd4 {[%clk 0:40:43]}  e5 {[%clk 0:29:48]}
19. Qxd5+ {[%clk 0:40:36]}  Be6 {[%clk 0:29:16]} 20. Qxb7 {[%clk 0:37:16]}  Re7 {[%clk 0:23:15]} 21. Qa6 {[%clk 0:34:38]}  Bc8 {[%clk 0:19:08]}
22. Qa4 {[%clk 0:25:16]}  g4 {[%clk 0:16:06]} 23. Nh4 {[%clk 0:24:38]}  Rg7 {[%clk 0:15:42]} 24. Rad1 {[%clk 0:24:00]}  Bd7 {[%clk 0:04:39]}
25. Qa6 {[%clk 0:22:05]}  Bc7 {[%clk 0:03:54]} 26. Nxf5 {[%clk 0:20:53]}  Bxf5 {[%clk 0:01:24]} 27. Rxd8+ {[%clk 0:21:11]}  Rxd8 {[%clk 0:01:49]}
28. Qxh6 {[%clk 0:21:07]}  Bd3 {[%clk 0:30:00]} 29. Qe6+ {[%clk 0:50:32]}  Kf8 {[%clk 0:28:48]} 30. Qf6+ {[%clk 0:45:47]}  Rf7 {[%clk 0:27:44]}
31. Qh6+ {[%clk 0:45:56]}  Kg8 {[%clk 0:27:07]} 32. Rd1 {[%clk 0:44:44]}  Rd6 {[%clk 0:25:53]} 33. Qh4 {[%clk 0:43:47]}  Bd8 {[%clk 0:20:59]}
34. Qg3 {[%clk 0:43:05]} 1-0

[Event "2026 European Womens Championship"]
[Site "Batumi, GE"]
[Date "2026.05.26"]
[Round "2"]
[White "Mkrtchyan, Anahit H."]
[Black "Kedelidze, Aneta"]
[Result "1-0"]
[Board "75"]
[TimeControl "5400+30"]
[WhiteFideId "13314858"]
[BlackFideId "13626191"]
[WhiteElo "2107"]
[BlackElo "1676"]
[WhiteClock "0:27:58"]
[BlackClock "0:21:53"]
[Variant "Standard"]

1. e4 {[%clk 1:30:51]}  c5 {[%clk 1:30:55]} 2. Nf3 {[%clk 1:31:14]}  d6 {[%clk 1:31:19]} 3. d4 {[%clk 1:31:38]}  cxd4 {[%clk 1:31:44]}
4. Nxd4 {[%clk 1:32:05]}  Nf6 {[%clk 1:32:07]} 5. Nc3 {[%clk 1:32:30]}  a6 {[%clk 1:32:33]} 6. Bg5 {[%clk 1:32:51]}  e6 {[%clk 1:32:56]}
7. f4 {[%clk 1:29:45]}  Be7 {[%clk 1:33:16]} 8. Bc4 {[%clk 1:29:33]}  h6 {[%clk 1:33:12]} 9. Bxf6 {[%clk 1:26:46]}  Bxf6 {[%clk 1:33:26]}
10. Qd2 {[%clk 1:25:12]}  Qc7 {[%clk 1:28:42]} 11. Bb3 {[%clk 1:22:34]}  Nd7 {[%clk 1:25:07]} 12. O-O-O {[%clk 1:10:38]}  Nc5 {[%clk 1:20:30]}
13. g4 {[%clk 1:08:16]}  b5 {[%clk 1:07:11]} 14. h4 {[%clk 0:46:12]}  b4 {[%clk 1:06:06]} 15. Nce2 {[%clk 0:41:29]}  Be7 {[%clk 0:53:16]}
16. g5 {[%clk 0:33:42]}  Bd7 {[%clk 0:48:47]} 17. f5 {[%clk 0:28:31]}  e5 {[%clk 0:42:57]} 18. Bd5 {[%clk 0:28:00]}  Rb8 {[%clk 0:19:11]}
19. Nb3 {[%clk 0:21:24]}  Nxb3+ {[%clk 0:19:25]} 20. Bxb3 {[%clk 0:21:09]}  a5 {[%clk 0:19:51]} 21. Qd5 {[%clk 0:17:04]}  Rf8 {[%clk 0:19:36]}
22. f6 {[%clk 0:15:50]}  gxf6 {[%clk 0:17:57]} 23. gxf6 {[%clk 0:16:03]}  Bxf6 {[%clk 0:16:31]} 24. Rhf1 {[%clk 0:15:52]}  Ke7 {[%clk 0:15:31]}
25. Ng3 {[%clk 0:12:49]}  a4 {[%clk 0:12:57]} 26. Bxa4 {[%clk 0:10:38]}  Bxa4 {[%clk 0:10:53]} 27. Nf5+ {[%clk 0:10:57]}  Ke8 {[%clk 0:09:55]}
28. Nxd6+ {[%clk 0:10:23]}  Ke7 {[%clk 0:10:18]} 29. Nf5+ {[%clk 0:07:13]}  Ke8 {[%clk 0:10:44]} 30. b3 {[%clk 0:05:50]}  Bd7 {[%clk 0:08:35]}
31. Nd6+ {[%clk 0:01:13]}  Ke7 {[%clk 0:09:00]} 32. Qd2 {[%clk 0:00:37]}  Bh3 {[%clk 0:05:44]} 33. Qxh6 {[%clk 0:00:37]}  Bxf1 {[%clk 0:04:33]}
34. Nf5+ {[%clk 0:01:01]}  Ke6 {[%clk 0:02:02]} 35. Ng7+ {[%clk 0:01:20]}  Ke7 {[%clk 0:02:28]} 36. Nf5+ {[%clk 0:01:38]}  Ke6 {[%clk 0:02:54]}
37. Rxf1 {[%clk 0:01:39]}  Qd8 {[%clk 0:00:51]} 38. Ng7+ {[%clk 0:01:32]}  Kd7 {[%clk 0:00:50]} 39. Rd1+ {[%clk 0:01:17]}  Ke7 {[%clk 0:01:11]}
40. Nf5+ {[%clk 0:01:01]}  Ke6 {[%clk 0:01:27]} 41. Rxd8 {[%clk 0:29:38]}  Rfxd8 {[%clk 0:30:59]} 42. Qe3 {[%clk 0:27:53]}  Rb5 {[%clk 0:23:08]}
43. Qa7 {[%clk 0:27:04]}  Rdb8 {[%clk 0:23:12]} 44. Qa6+ {[%clk 0:27:08]}  R5b6 {[%clk 0:22:14]} 45. Qc4+ {[%clk 0:27:27]}  Kd7 {[%clk 0:22:38]}
46. Qxf7+ {[%clk 0:27:42]}  Kc8 {[%clk 0:22:37]} 47. h5 {[%clk 0:27:41]}  Bg5+ {[%clk 0:22:23]} 48. Kb2 {[%clk 0:27:17]}  Bd2 {[%clk 0:21:16]}
49. Qe8+ {[%clk 0:26:53]}  Kc7 {[%clk 0:21:39]} 50. Qxe5+ {[%clk 0:26:53]}  Kc8 {[%clk 0:21:36]} 51. Qc5+ {[%clk 0:27:14]}  Kb7 {[%clk 0:21:37]}
52. Qd5+ {[%clk 0:27:36]}  Ka7 {[%clk 0:21:53]} 53. Qxd2 {[%clk 0:27:58]} 1-0

[Event "2026 European Womens Championship"]
[Site "Batumi, GE"]
[Date "2026.05.26"]
[Round "2"]
[White "Shuqja, Klean"]
[Black "Ediberidze, Alexandra"]
[Result "1-0"]
[Board "76"]
[TimeControl "5400+30"]
[WhiteFideId "4701585"]
[BlackFideId "13636685"]
[WhiteElo "2092"]
[BlackElo "1638"]
[WhiteTitle "WFM"]
[WhiteClock "1:00:13"]
[BlackClock "0:12:37"]
[Variant "Standard"]

1. e4 {[%clk 1:23:52]}  c6 {[%clk 1:30:56]} 2. d4 {[%clk 1:24:15]}  d5 {[%clk 1:31:20]} 3. Nd2 {[%clk 1:24:41]}  dxe4 {[%clk 1:31:43]}
4. Nxe4 {[%clk 1:25:10]}  Nf6 {[%clk 1:32:04]} 5. Nxf6+ {[%clk 1:25:38]}  exf6 {[%clk 1:32:25]} 6. c3 {[%clk 1:26:06]}  Bd6 {[%clk 1:32:44]}
7. Bd3 {[%clk 1:26:35]}  O-O {[%clk 1:32:33]} 8. Qc2 {[%clk 1:27:03]}  h6 {[%clk 1:30:28]} 9. Ne2 {[%clk 1:26:31]}  Nd7 {[%clk 1:27:45]}
10. Be3 {[%clk 1:26:53]}  Nb6 {[%clk 1:27:34]} 11. c4 {[%clk 1:26:37]}  Bc7 {[%clk 1:06:50]} 12. O-O-O {[%clk 1:24:11]}  Nd7 {[%clk 1:02:17]}
13. Kb1 {[%clk 1:23:28]}  b5 {[%clk 0:59:04]} 14. d5 {[%clk 1:18:52]}  cxd5 {[%clk 0:46:40]} 15. cxb5 {[%clk 1:18:26]}  Ne5 {[%clk 0:40:15]}
16. Be4 {[%clk 1:10:34]}  Be6 {[%clk 0:32:59]} 17. Nc3 {[%clk 1:09:34]}  Bd6 {[%clk 0:16:05]} 18. Bxd5 {[%clk 1:08:45]}  Bxd5 {[%clk 0:15:56]}
19. Rxd5 {[%clk 1:07:50]}  Qe7 {[%clk 0:15:59]} 20. Rhd1 {[%clk 1:06:45]}  Rfd8 {[%clk 0:15:22]} 21. Qe4 {[%clk 1:01:28]}  Qc7 {[%clk 0:11:23]}
22. b6 {[%clk 1:00:20]}  axb6 {[%clk 0:11:29]} 23. Rxd6 {[%clk 0:59:40]}  Rxd6 {[%clk 0:11:11]} 24. Qxa8+ {[%clk 0:59:44]}  Kh7 {[%clk 0:11:32]}
25. Rxd6 {[%clk 0:59:56]}  Qxd6 {[%clk 0:11:57]} 26. Qe4+ {[%clk 1:00:01]}  g6 {[%clk 0:12:16]} 27. Bf4 {[%clk 0:59:59]}  Qd7 {[%clk 0:12:08]}
28. Bxe5 {[%clk 1:00:10]}  fxe5 {[%clk 0:12:37]} 29. Nd5 {[%clk 1:00:13]} 1-0

[Event "2026 European Womens Championship"]
[Site "Batumi, GE"]
[Date "2026.05.26"]
[Round "2"]
[White "Tashkinova, Sofiia"]
[Black "Xing, Lida"]
[Result "1-0"]
[Board "77"]
[TimeControl "5400+30"]
[WhiteFideId "14188309"]
[BlackFideId "13326171"]
[WhiteElo "2085"]
[BlackElo "1598"]
[WhiteTitle "WFM"]
[WhiteClock "0:17:46"]
[BlackClock "0:15:48"]
[Variant "Standard"]

1. e4 {[%clk 1:27:12]}  e5 {[%clk 1:30:57]} 2. Nf3 {[%clk 1:27:35]}  Nc6 {[%clk 1:31:20]} 3. Bb5 {[%clk 1:27:49]}  a6 {[%clk 1:31:42]}
4. Ba4 {[%clk 1:28:14]}  Nf6 {[%clk 1:32:05]} 5. Nc3 {[%clk 1:28:32]}  Be7 {[%clk 1:32:16]} 6. d3 {[%clk 1:26:26]}  b5 {[%clk 1:32:39]}
7. Bb3 {[%clk 1:26:50]}  d6 {[%clk 1:31:11]} 8. a4 {[%clk 1:23:49]}  b4 {[%clk 1:31:01]} 9. Nd5 {[%clk 1:24:10]}  Na5 {[%clk 1:30:02]}
10. Nxb4 {[%clk 1:19:25]}  Nxb3 {[%clk 1:30:25]} 11. cxb3 {[%clk 1:19:43]}  c5 {[%clk 1:30:45]} 12. Nc6 {[%clk 1:18:38]}  Qc7 {[%clk 1:31:06]}
13. Nxe7 {[%clk 1:19:00]}  Qxe7 {[%clk 1:31:31]} 14. Nd2 {[%clk 1:18:50]}  O-O {[%clk 1:30:33]} 15. Nc4 {[%clk 1:18:39]}  Bg4 {[%clk 1:23:47]}
16. f3 {[%clk 1:17:51]}  Be6 {[%clk 1:24:02]} 17. Bg5 {[%clk 1:17:49]}  Rab8 {[%clk 1:23:38]} 18. Qc2 {[%clk 1:15:34]}  Qb7 {[%clk 1:11:05]}
19. Bxf6 {[%clk 1:13:55]}  gxf6 {[%clk 1:11:26]} 20. Ra3 {[%clk 1:13:24]}  Qb4+ {[%clk 1:07:45]} 21. Kf2 {[%clk 1:08:48]}  Rfd8 {[%clk 1:05:53]}
22. Rc1 {[%clk 0:53:22]}  d5 {[%clk 1:02:20]} 23. exd5 {[%clk 0:52:40]}  Rxd5 {[%clk 1:02:39]} 24. Ne3 {[%clk 0:47:42]}  Rdd8 {[%clk 1:00:56]}
25. Ke2 {[%clk 0:39:38]}  Bxb3 {[%clk 0:48:49]} 26. Qxc5 {[%clk 0:37:30]}  Qb7 {[%clk 0:38:18]} 27. Qc6 {[%clk 0:35:13]}  Qb4 {[%clk 0:33:40]}
28. Qxf6 {[%clk 0:30:32]}  Rxd3 {[%clk 0:28:14]} 29. Qg5+ {[%clk 0:27:19]}  Kf8 {[%clk 0:28:11]} 30. Qh6+ {[%clk 0:20:11]}  Kg8 {[%clk 0:17:42]}
31. Nf5 {[%clk 0:19:00]}  Bd1+ {[%clk 0:15:48]} 32. Kf1 {[%clk 0:17:46]} 1-0

[Event "2026 European Womens Championship"]
[Site "Batumi, GE"]
[Date "2026.05.26"]
[Round "2"]
[White "Manukyan, Tamara"]
[Black "Vakhania, Aleksandra"]
[Result "1/2-1/2"]
[Board "78"]
[TimeControl "5400+30"]
[WhiteFideId "13321307"]
[BlackFideId "13602560"]
[WhiteElo "1707"]
[BlackElo "2079"]
[BlackTitle "WIM"]
[WhiteClock "0:14:40"]
[BlackClock "0:05:41"]
[Variant "Standard"]

1. e4 {[%clk 1:30:58]}  e6 {[%clk 1:30:17]} 2. d3 {[%clk 1:31:22]}  d5 {[%clk 1:29:31]} 3. Nd2 {[%clk 1:31:47]}  Nf6 {[%clk 1:29:55]}
4. g3 {[%clk 1:32:13]}  c5 {[%clk 1:30:21]} 5. Bg2 {[%clk 1:32:38]}  Nc6 {[%clk 1:30:48]} 6. Ngf3 {[%clk 1:33:03]}  Be7 {[%clk 1:31:13]}
7. O-O {[%clk 1:33:23]}  O-O {[%clk 1:30:34]} 8. Re1 {[%clk 1:33:50]}  Qc7 {[%clk 1:25:00]} 9. Nf1 {[%clk 1:32:47]}  dxe4 {[%clk 1:22:42]}
10. dxe4 {[%clk 1:33:10]}  Rd8 {[%clk 1:23:08]} 11. Qe2 {[%clk 1:31:18]}  Nd4 {[%clk 1:14:51]} 12. Nxd4 {[%clk 1:30:39]}  cxd4 {[%clk 1:13:53]}
13. e5 {[%clk 1:23:41]}  Nd5 {[%clk 1:12:16]} 14. a3 {[%clk 1:20:46]}  Bd7 {[%clk 1:03:49]} 15. Qg4 {[%clk 1:06:49]}  Qxc2 {[%clk 0:55:13]}
16. Qxd4 {[%clk 1:05:57]}  Bc5 {[%clk 0:47:49]} 17. Qd2 {[%clk 1:06:04]}  Qb3 {[%clk 0:47:42]} 18. Be4 {[%clk 1:02:45]}  Bc6 {[%clk 0:41:17]}
19. Bc2 {[%clk 0:57:47]}  Qf3 {[%clk 0:36:49]} 20. Be4 {[%clk 0:57:56]}  Qb3 {[%clk 0:32:45]} 21. Bc2 {[%clk 0:56:01]}  Qb6 {[%clk 0:33:07]}
22. Qe2 {[%clk 0:54:58]}  Bb5 {[%clk 0:27:04]} 23. Qf3 {[%clk 0:53:59]}  Rac8 {[%clk 0:27:19]} 24. Be4 {[%clk 0:49:42]}  f5 {[%clk 0:22:49]}
25. exf6 {[%clk 0:47:30]}  Nxf6 {[%clk 0:21:55]} 26. Bxb7 {[%clk 0:47:23]}  Bxf2+ {[%clk 0:21:41]} 27. Qxf2 {[%clk 0:47:12]}  Qxb7 {[%clk 0:22:07]}
28. Bf4 {[%clk 0:34:43]}  Ng4 {[%clk 0:19:20]} 29. Qg2 {[%clk 0:34:21]}  Qb6+ {[%clk 0:15:45]} 30. Be3 {[%clk 0:32:14]}  Nxe3 {[%clk 0:12:35]}
31. Nxe3 {[%clk 0:32:34]}  Rd3 {[%clk 0:12:54]} 32. Qe4 {[%clk 0:31:34]}  Rcd8 {[%clk 0:11:49]} 33. a4 {[%clk 0:30:14]}  R3d4 {[%clk 0:08:19]}
34. Qc2 {[%clk 0:27:56]}  Bd3 {[%clk 0:06:26]} 35. a5 {[%clk 0:27:24]}  Qb7 {[%clk 0:06:16]} 36. Qg2 {[%clk 0:24:57]}  Be4 {[%clk 0:06:24]}
37. Qh3 {[%clk 0:25:21]}  Qxb2 {[%clk 0:03:57]} 38. Qxe6+ {[%clk 0:25:18]}  Kh8 {[%clk 0:04:22]} 39. Ra2 {[%clk 0:21:08]}  Qc3 {[%clk 0:02:40]}
40. Rae2 {[%clk 0:20:56]}  h6 {[%clk 0:01:26]} 41. Nf5 {[%clk 0:17:10]}  Bxf5 {[%clk 0:18:11]} 42. Qxf5 {[%clk 0:47:33]}  Rd1 {[%clk 0:18:29]}
43. Rxd1 {[%clk 0:43:38]}  Rxd1+ {[%clk 0:18:13]} 44. Kg2 {[%clk 0:44:00]}  Rd8 {[%clk 0:17:04]} 45. Qe5 {[%clk 0:42:36]}  Qc6+ {[%clk 0:16:50]}
46. Qe4 {[%clk 0:42:59]}  Qxe4+ {[%clk 0:12:52]} 47. Rxe4 {[%clk 0:42:31]}  Rd5 {[%clk 0:10:16]} 48. Ra4 {[%clk 0:42:51]}  Kg8 {[%clk 0:10:18]}
49. Kf3 {[%clk 0:41:28]}  Kf7 {[%clk 0:10:43]} 50. Ke4 {[%clk 0:41:07]}  Ke6 {[%clk 0:11:00]} 51. Ra2 {[%clk 0:41:32]}  a6 {[%clk 0:10:47]}
52. g4 {[%clk 0:41:30]}  Rb5 {[%clk 0:10:08]} 53. Kd4 {[%clk 0:37:10]}  Kd6 {[%clk 0:10:30]} 54. Kc4 {[%clk 0:37:06]}  Ke5 {[%clk 0:09:03]}
55. h3 {[%clk 0:36:38]}  Kf4 {[%clk 0:07:02]} 56. Ra3 {[%clk 0:36:52]}  Ke4 {[%clk 0:02:17]} 57. Kc3 {[%clk 0:37:01]}  Kd5 {[%clk 0:02:04]}
58. Kd3 {[%clk 0:34:16]}  Rc5 {[%clk 0:01:44]} 59. Ra1 {[%clk 0:32:06]}  Rb5 {[%clk 0:01:53]} 60. Ra3 {[%clk 0:32:12]}  Rb1 {[%clk 0:01:55]}
61. Ke3 {[%clk 0:30:29]}  Rh1 {[%clk 0:01:25]} 62. Kf4 {[%clk 0:29:42]}  Rf1+ {[%clk 0:01:49]} 63. Ke3 {[%clk 0:26:59]}  Kc4 {[%clk 0:02:12]}
64. Ke4 {[%clk 0:24:06]}  Kb4 {[%clk 0:02:12]} 65. Ra2 {[%clk 0:24:30]}  Rh1 {[%clk 0:02:20]} 66. Kf5 {[%clk 0:21:47]}  Rxh3 {[%clk 0:01:59]}
67. Kg6 {[%clk 0:22:14]}  Rg3 {[%clk 0:02:24]} 68. Kxg7 {[%clk 0:22:39]}  h5 {[%clk 0:02:48]} 69. Kh6 {[%clk 0:22:54]}  hxg4 {[%clk 0:02:42]}
70. Kg5 {[%clk 0:23:21]}  Rg1 {[%clk 0:01:56]} 71. Kf4 {[%clk 0:23:44]}  Kb3 {[%clk 0:01:53]} 72. Re2 {[%clk 0:24:09]}  Kb4 {[%clk 0:01:37]}
73. Ra2 {[%clk 0:24:17]}  g3 {[%clk 0:01:40]} 74. Kf3 {[%clk 0:24:43]}  Kb3 {[%clk 0:01:00]} 75. Re2 {[%clk 0:25:09]}  Kb4 {[%clk 0:00:41]}
76. Ra2 {[%clk 0:25:35]}  Kb5 {[%clk 0:00:46]} 77. Ra3 {[%clk 0:25:19]}  Kc4 {[%clk 0:01:03]} 78. Ra4+ {[%clk 0:24:54]}  Kb5 {[%clk 0:01:01]}
79. Ra3 {[%clk 0:24:59]}  Kb4 {[%clk 0:00:45]} 80. Ra2 {[%clk 0:25:25]}  g2 {[%clk 0:01:03]} 81. Kf2 {[%clk 0:25:51]}  Rf1+ {[%clk 0:01:23]}
82. Kxg2 {[%clk 0:26:17]}  Rf5 {[%clk 0:01:50]} 83. Rb2+ {[%clk 0:26:03]}  Kxa5 {[%clk 0:01:45]} 84. Kg3 {[%clk 0:26:25]}  Ka4 {[%clk 0:01:52]}
85. Kg4 {[%clk 0:26:50]}  Rd5 {[%clk 0:02:00]} 86. Kf4 {[%clk 0:27:13]}  Ka3 {[%clk 0:01:57]} 87. Rb1 {[%clk 0:26:50]}  a5 {[%clk 0:02:16]}
88. Ke4 {[%clk 0:27:17]}  Rh5 {[%clk 0:02:02]} 89. Kd3 {[%clk 0:26:09]}  a4 {[%clk 0:02:03]} 90. Kc3 {[%clk 0:24:30]}  Rc5 {[%clk 0:02:25]}
91. Kd4 {[%clk 0:24:41]}  Rc8 {[%clk 0:02:44]} 92. Kd3 {[%clk 0:24:57]}  Ka2 {[%clk 0:03:09]} 93. Rb4 {[%clk 0:25:16]}  a3 {[%clk 0:03:32]}
94. Kd2 {[%clk 0:25:38]}  Ka1 {[%clk 0:03:37]} 95. Rb5 {[%clk 0:23:56]}  Rh8 {[%clk 0:02:41]} 96. Kc2 {[%clk 0:22:05]}  Rh2+ {[%clk 0:02:58]}
97. Kc1 {[%clk 0:22:14]}  Rb2 {[%clk 0:02:53]} 98. Ra5 {[%clk 0:22:20]}  Ka2 {[%clk 0:02:01]} 99. Ra8 {[%clk 0:22:44]}  Rb1+ {[%clk 0:01:48]}
100. Kc2 {[%clk 0:23:09]}  Rb5 {[%clk 0:01:40]} 101. Kc3 {[%clk 0:22:00]}  Rb7 {[%clk 0:01:15]} 102. Ra6 {[%clk 0:22:16]}  Rc7+ {[%clk 0:01:35]}
103. Kd2 {[%clk 0:20:56]}  Kb3 {[%clk 0:01:09]} 104. Rb6+ {[%clk 0:21:22]}  Ka4 {[%clk 0:01:15]} 105. Ra6+ {[%clk 0:19:24]}  Kb4 {[%clk 0:01:42]}
106. Rb6+ {[%clk 0:19:31]}  Ka5 {[%clk 0:01:47]} 107. Rb3 {[%clk 0:19:26]}  Ka4 {[%clk 0:02:06]} 108. Rb6 {[%clk 0:19:45]}  Rc5 {[%clk 0:01:35]}
109. Ra6+ {[%clk 0:18:37]}  Kb4 {[%clk 0:01:54]} 110. Rb6+ {[%clk 0:18:56]}  Ka5 {[%clk 0:02:06]} 111. Rb7 {[%clk 0:17:57]}  Ka6 {[%clk 0:02:01]}
112. Rb1 {[%clk 0:17:16]}  Ka5 {[%clk 0:02:02]} 113. Rb8 {[%clk 0:16:50]}  Ka4 {[%clk 0:02:11]} 114. Ra8+ {[%clk 0:16:43]}  Kb3 {[%clk 0:02:09]}
115. Rb8+ {[%clk 0:17:01]}  Ka2 {[%clk 0:02:26]} 116. Rb7 {[%clk 0:17:06]}  Ka1 {[%clk 0:02:47]} 117. Rb6 {[%clk 0:17:14]}  a2 {[%clk 0:03:12]}
118. Rb7 {[%clk 0:17:34]}  Rh5 {[%clk 0:03:33]} 119. Kc2 {[%clk 0:17:15]}  Rh2+ {[%clk 0:03:52]} 120. Kc1 {[%clk 0:17:39]}  Rh1 {[%clk 0:04:16]}
121. Kc2 {[%clk 0:18:05]}  Rb1 {[%clk 0:04:40]} 122. Ra7 {[%clk 0:15:00]}  Rb2+ {[%clk 0:04:49]} 123. Kc1 {[%clk 0:14:39]}  Rh2 {[%clk 0:05:02]}
124. Rb7 {[%clk 0:14:36]}  Rh6 {[%clk 0:05:15]} 125. Rc7 {[%clk 0:14:33]}  Rb6 {[%clk 0:05:41]} 126. Rc8 {[%clk 0:14:40]} 1/2-1/2